Cogmind - Beta 11 @@@ ROGUE MODE // 2022.04.03 @ 11:13:43 Player: DrZettl Result: Destroyed by G-34 Mercenary with Small Laser Performance ------------- Evolutions (1) 500 Regions Visited (2) 400 Robots Destroyed (53) 265 Value Destroyed (1245) 1245 Prototype IDs (7) 140 Alien Tech Used (0) 0 Bonus (157) 157 TOTAL SCORE: 2707 Bonus ------- High Alert Combat Kills 157 Cogmind --------- Core Integrity 0/400 Matter 194/300 Energy 100/100 System Corruption 0% Temperature Cool (6) Movement Core (200) Ox3 Location -9/Materials Parts ------- > --- POWER (1) -------- (None) > --- PROPULSION (3) --- (None) > --- UTILITY (3) ------ Medium Storage Unit Visual Processing Unit Signal Interpreter > --- WEAPON (2) ------- (None) > --- INVENTORY (10) --- Light Ion Engine Flight Unit VTOL Module Small Storage Unit Structural Scanner Improved Sensor Array Improved Sensor Array ECM Suite Light Armor Plating Assault Rifle Peak State ------------ > --- POWER ------------ Cooled Ion Engine > --- PROPULSION ------- Wheel Improved Flight Unit Improved Flight Unit > --- UTILITY ---------- Medium Storage Unit Visual Processing Unit Signal Interpreter > --- WEAPON ----------- Assault Cannon Mini Grenade Launcher > --- INVENTORY -------- Light Ion Engine Improved Ion Engine Small Storage Unit Structural Scanner Improved Sensor Array Improved Sensor Array ECM Suite Assault Rifle Assault Rifle Heavy Assault Rifle [Rating: 20] Favorites ----------- Power Cooled Ion Engine Engine Cooled Ion Engine Propulsion Wheel Wheel Wheel Flight Unit Improved Flight Unit Utility Signal Interpreter Device Structural Scanner Storage Small Storage Unit Processor Signal Interpreter Weapon Assault Rifle Energy Gun Improved Medium Laser Energy Cannon Advanced Beam Cannon Ballistic Gun Assault Rifle Ballistic Cannon Assault Cannon Launcher Mini Grenade Launcher Build | -11 -10 -9 ------- Run | Scr Mat Mat Slots Evolved 2 | . . 2 Power . | . . . Propulsion 1 | . . 1 Utility 1 | . . 1 Weapon . | . . . Parts Attached 42 | 10 11 21 Power 6 | 2 1 3 Engine 6 | 2 1 3 Core . | . . . Reactor . | . . . Propulsion 7 | 2 2 3 Treads . | . . . Leg . | . . . Wheel 4 | 2 2 . Hover . | . . . Flight 3 | . . 3 Utility 6 | 2 2 2 Device 2 | 1 1 . Storage 2 | 1 . 1 Processor 2 | . 1 1 Hackware . | . . . Protection . | . . . Artifact . | . . . Weapon 23 | 4 6 13 Energy Gun 1 | . 1 . Energy Cannon 2 | . . 2 Ballistic Gun 12 | 4 3 5 Ballistic Cannon 2 | . . 2 Launcher 6 | . 2 4 Special Weapon . | . . . Impact Weapon . | . . . Slashing Weapon . | . . . Piercing Weapon . | . . . Special Melee Weapon . | . . . Unidentified Prototypes 4 | . 2 2 Parts Lost 8 | . . 8 Power 1 | . . 1 Propulsion 4 | . . 4 Utility . | . . . Weapon 3 | . . 3 Highest Loss Streak 5 | . . 5 To Critical Strikes . | . . . Average Slot Usage (%) 98 | . 100 97 Engine 11 | . 14 10 Wheel 19 | . 28 14 Flight 11 | . . 17 Device 4 | . 14 . Storage 12 | . 14 11 Processor 13 | . . 21 Energy Cannon 2 | . . 4 Ballistic Gun 16 | . 25 11 Ballistic Cannon 2 | . . 3 Launcher 1 | . 2 1 Naked Turns . | . . . Heaviest Build 25 | 14 17 25 Greatest Support 32 | 32 32 20 Greatest Overweight (x) 4 | . . 4 Average Overweight (x) . | . . 1 Largest Inventory Capacity 10 | 8 8 10 Average Capacity 8 | 7 8 9 Most Carried 10 | 6 8 10 Average Carried 8 | 3 7 9 Final Capacity 10 | 8 8 10 Final Carried 10 | 6 8 10 Class Distribution -------------------- 100% | Mutant Dominant Class ---------------- Mutant | -10/Materials Mutant | -9/Materials Resources | -11 -10 -9 ----------- Run | Scr Mat Mat Matter Collected 1110 | 290 337 483 Remotely 154 | 76 78 . Salvage Created 1216 | 87 334 795 Parts 88 | 4 22 62 Haulers Intercepted 6 | . 1 5 Recyclers Shooed 3 | . 2 1 Parts Field Recycled . | . . . Retrieved Matter . | . . . Parts Self-Destructed . | . . . Prevented . | . . . Kills | -11 -10 -9 ------- Run | Scr Mat Mat Combat Hostiles Destroyed 31 | . 9 22 Guns 5 | . 3 2 Cannons 7 | . . 7 AOE 19 | . 6 13 Classes Destroyed 10 | 2 4 4 Worker 7 | . 2 5 Tunneler 2 | 1 . 1 Hauler 6 | . 1 5 Recycler 1 | 1 . . Operator 1 | . . 1 Watcher 5 | . 1 4 Swarmer 4 | . . 4 Grunt 22 | . 9 13 Brawler 1 | . . 1 Sentry 4 | . . 4 Best Kill Streak 7 | 2 4 7 Combat Bots Only 4 | . 4 4 Max Kills in Single Turn 4 | 1 2 4 Gunslinging . | . . . Exploded 2 | . 2 2 Melee . | . . . Uniques/NPCs Destroyed . | . . . Combat | -11 -10 -9 -------- Run | Scr Mat Mat Damage Taken 1270 | . 174 1096 Core 451 | . 50 401 Absorbed by Shields . | . . . Core Remaining (%) 90 | 100 80 . Volleys Fired 105 | 4 43 58 Largest 2 | 2 2 2 Hottest 88 | 40 40 88 Shots Fired 173 | 8 78 87 Gun 112 | 8 70 34 Cannon 27 | . . 27 Launcher 34 | . 8 26 Special . | . . . Kinetic 125 | 8 70 47 Thermal 9 | . . 9 Explosive 34 | . 8 26 Electromagnetic 5 | . . 5 Robot Hit Streak 14 | 3 8 14 Robot Miss Streak 5 | 1 5 2 Penetration Max . | . . . Secondary Targets . | . . . Shots Hit Robots 87 | 6 39 42 Core Hits 92 | 4 26 62 Critical Kills 1 | . . 1 Critical Parts Destroyed . | . . . Critical Strikes 2 | . . 2 Destroy 1 | . . 1 Blast 1 | . . 1 Melee Attacks . | . . . Impact . | . . . Slashing . | . . . Piercing . | . . . Sneak Attacks . | . . . Combat Hostiles . | . . . Follow-up Attacks . | . . . Damage Inflicted 3575 | 60 935 2580 Guns 663 | 60 392 211 Cannons 425 | . . 425 Explosions 2481 | . 537 1944 Melee . | . . . Ramming 6 | . 6 . Kinetic 961 | 60 392 509 Thermal 62 | . . 62 Explosive 2481 | . 537 1944 Electromagnetic 65 | . . 65 Impact . | . . . Slashing . | . . . Piercing . | . . . Highest Corruption . | . . . Average Corruption . | . . . Corruption Purged . | . . . Corruption Blocked . | . . . Overload Shots . | . . . Overflow Damage 36 | . . 36 Projectiles . | . . . Explosions 36 | . . 36 Melee . | . . . Knockbacks 5 | . . 5 Impact . | . . . Kinetic 4 | . . 4 Secondary 1 | . . 1 Self-Inflicted Damage 47 | . 3 44 Shots 1 | . . 1 Rammed 2 | . 2 . Targets Rammed 2 | . 2 . Kicked . | . . . Crushed . | . . . Highest Temperature 96 | . 18 96 Average Temperature 25 | . 8 27 Received Heat Transfer 510 | . 93 417 Siege Activations . | . . . Robots Corrupted . | . . . Combat Hostiles . | . . . Parts Fried . | . . . Impact Corruptions . | . . . Robots Melted . | . . . Combat Hostiles . | . . . Parts Melted . | . . . Heat Transferred 111 | . . 111 Parts Sabotaged . | . . . Parts Stolen . | . . . Parts Stripped . | . . . Power Chain Reactions . | . . . Missiles Intercepted . | . . . Alert | -11 -10 -9 ------- Run | Scr Mat Mat Peak Influence 810 | 10 546 810 Initial 155 | . 6 155 Average 359 | 2 218 465 Maximum Alert Level 3 | . 2 3 Low Security (%) 40 | 100 60 24 Level 1 20 | . 31 17 Level 2 20 | . 8 29 Level 3 18 | . . 29 Level 4 . | . . . Level 5 . | . . . High Security . | . . . Max Security . | . . . Squads Dispatched 10 | . 4 6 Investigation 3 | . 1 2 Extermination . | . . . Reinforcement 6 | . 3 3 Assault 1 | . . 1 Garrison . | . . . Intercept . | . . . Searches Triggered . | . . . Construction Impeded . | . . . Haulers Reinforced . | . . . Active Scanning Responses . | . . . Cargo Convoy Interrupts . | . . . Stealth | -11 -10 -9 --------- Run | Scr Mat Mat Distress Signals 3 | . . 3 Communications Jammed . | . . . Distress Signals . | . . . Times Spotted 67 | . 22 45 Peak Tracking Total 10 | . 5 10 Tactical Retreats . | . . . Traps | -11 -10 -9 ------- Run | Scr Mat Mat Traps Triggered . | . . . Indirectly . | . . . Trap Hack Attempts . | . . . Triggered . | . . . Disarmed . | . . . Reprogrammed . | . . . Reused . | . . . Traps Extracted . | . . . Installed . | . . . Triggered . | . . . Machines | -11 -10 -9 ---------- Run | Scr Mat Mat Machines Disabled 8 | . 2 6 Max in Single Turn 2 | . 2 2 Machines Sabotaged . | . . . Garrisons Compromised . | . . . Overloaded Fab Kills . | . . . Hacking | -11 -10 -9 --------- Run | Scr Mat Mat Machines Accessed 12 | . 5 7 Terminals 9 | . 4 5 Fabricators . | . . . Repair Stations . | . . . Recycling Units 2 | . 1 1 Scanalyzers 1 | . . 1 Garrison Access . | . . . Total Hacks 32 | . 13 19 Successful 15 | . 5 10 Failed 17 | . 8 9 Catastrophic 1 | . 1 . Database Lockouts . | . . . Manual 19 | . 8 11 Terminals 28 | . 12 16 Fabricators . | . . . Repair Stations . | . . . Recycling Units 2 | . 1 1 Scanalyzers 2 | . . 2 Garrison Access . | . . . Terminal Hacks 8 | . 3 5 Part Schematic 1 | . 1 . Robot Analysis 1 | . . 1 Prototype ID Bank 3 | . 1 2 Alert Level 1 | . 1 . Unreport Threat 2 | . . 2 Fabricator Hacks . | . . . Repair Station Hacks . | . . . Recycling Unit Hacks 2 | . 1 1 Report Inventory 2 | . 1 1 Scanalyzer 2 | . . 2 Insert Component 1 | . . 1 Analyze 1 | . . 1 Garrison Access Hacks . | . . . Unauthorized Hacks 3 | . 1 2 Terminals 3 | . 1 2 Assimilate 1 | . . 1 Botnet 1 | . . 1 Disrupt 1 | . 1 . Fabricators . | . . . Repair Stations . | . . . Recycling Units . | . . . Scanalyzers . | . . . Garrison Access . | . . . Data Cores Recovered 1 | . . 1 Used . | . . . Hacking Detections 9 | . 4 5 Full Trace Events 5 | . 3 2 Feedback Events . | . . . Feedback Blocked . | . . . Robot Schematics Acquired . | . . . Robots Built . | . . . Authchips . | . . . Time . | . . . Total Robot Build Rating . | . . . Part Schematics Acquired 2 | . 1 1 Parts Built . | . . . Authchips . | . . . Time . | . . . Total Part Build Rating . | . . . Parts Repaired . | . . . Time . | . . . Parts Recycled . | . . . Recycled Matter . | . . . Retrieved Matter . | . . . Retrieved Components . | . . . Parts Scanalyzed 1 | . . 1 Part Schematics Acquired 1 | . . 1 Parts Damaged . | . . . Bothacking | -11 -10 -9 ------------ Run | Scr Mat Mat Used RIF Installer . | . . . Robots Hacked . | . . . Non-combat . | . . . Combat . | . . . Robot Hacks Applied . | . . . Relay Couplers Released . | . . . Fabnet Peak Effective % . | . . . Robots Rewired . | . . . Allies Hacked . | . . . Hacks Repelled . | . . . Allies | -11 -10 -9 -------- Run | Scr Mat Mat Total Allies . | . . . Largest Group . | . . . Highest-Rated Group . | . . . Highest-Rated Ally . | . . . Total Orders . | . . . Ally Attacks . | . . . Total Damage . | . . . Kills . | . . . Allies Corrupted . | . . . Allies Melted . | . . . Intel | -11 -10 -9 ------- Run | Scr Mat Mat Robot Analysis Total 1 | . . 1 Derelict Logs Recovered . | . . . Drone Launches . | . . . Drone Recoveries . | . . . Exploration | -11 -10 -9 ------------- Run | Scr Mat Mat Turns Passed 1488 | 80 488 920 Spaces Moved 1110 | 50 375 685 Core 6 | 1 . 5 Treads . | . . . Legs . | . . . Wheels 1104 | 49 375 680 Hover . | . . . Flight . | . . . Fastest Speed 50 | 50 80 80 Average Speed 98 | 99 90 101 Slowest Speed 250 | 100 100 250 Overloaded Moves . | . . . Propulsion Burnouts . | . . . Robots Hopped . | . . . Cave-ins Triggered . | . . . Exploration Rate (%) 40 | 3 53 64 Regions Visited 2 Branch Regions . Pre-discovered Areas . | . . . Known Exits Taken 1 | . 1 . Unknown Exits Taken 1 | 1 . . Scrap Searched . | . . . Spaces Dug . | . . . Terrain Destroyed 150 | . 40 110 Melee . | . . . Projectile . | . . . AOE 150 | . 40 110 Terrain Rammed . | . . . Walls Destroyed . | . . . Machines Disabled . | . . . Actions | -11 -10 -9 --------- Run | Scr Mat Mat Total 1341 | 69 450 822 Wait 35 | . 3 32 Move 1108 | 49 374 685 Hop . | . . . Pick Up 24 | 6 8 10 Fast Attach 12 | 5 1 6 Attach 5 | 2 . 3 Detach 4 | . . 4 Swap 25 | 3 10 12 Drop 21 | . 9 12 Fire 105 | 4 43 58 Melee . | . . . Ram 2 | . 2 . Kick . | . . . Crush . | . . . Escape Stasis . | . . . Rewire . | . . . Trap . | . . . Miscellaneous . | . . . Route ------- -11/Scrapyard -10/Materials (discovered 2 exits: *Mat / [*Min]) -9/Materials (discovered 2 exits: *Mat / *Min) History --------- Turn | Location | Event 15 | -11/Scrapyard | Discovered new exit (range 16) 81 | -11/Scrapyard | Entered Materials 309 | -10/Materials | Build established: Mutant 463 | -10/Materials | Discovered new exit (range 14) 542 | -10/Materials | Discovered new exit (range 14) 565 | -10/Materials | Identified exit to Materials 569 | -10/Materials | Entered another Materials area 569 | -9/Materials | Evolved 2 slots: Propulsion x1, Utility x1 712 | -9/Materials | Discovered new exit (range 8) 719 | -9/Materials | Identified exit to Mines 1056 | -9/Materials | Discovered new exit (range 12) 1073 | -9/Materials | Identified exit to Materials 1369 | -9/Materials | First assault squad dispatched 1424 | -9/Materials | Core integrity fell below 50% 1488 | -9/Materials | Core integrity fell below 20% 1489 | -9/Materials | Destroyed by G-34 Mercenary with Small Laser Last Messages --------------- 01441_ C-30 ARC bursts open, deploying its payload. 01441_ G-47 Trooper unfolds itself. 01441_ L-31 Rogue unfolds itself. 01441_ G-34 Mercenary unfolds itself. 01441_ M-13 Machinist unfolds itself. 01442_ R-06 Scavenger collects Heat Sink. 01443_ K-01 Serf collects debris. 01445_ U-05 Engineer builds a Wall. 01447_ K-01 Serf collects debris. 01447_ Connecting with Terminal... >>Alert(Purge) Purged threat record, alert level lowered. 01448_ K-01 Serf collects debris. 01449_ U-05 Engineer lays Concrete. 01457_ U-05 Engineer builds a Wall. 01473_ Imp. Ion Engine destroyed. 01478_ Wheel destroyed. 01482_ Lgt. EM Pulse Cannon destroyed. 01483_ Imp. Flight Unit destroyed. 01487_ G-34 Mercenary destroyed. Map ----- +----------------------------------------------------+ | #####+########## ####?????????????????? | | = !"%" *!%[ #####?????????????? | | " [ [ [!! ]#?????????????? | | = ! [ #?????????????? | | ####+##+#### # ==[ !! #?????????????? | | ??# ## ! *# =% #?????????????? | | ??# = ?## # = #?????????????? | | ??# [ #?### %# #?????????????? | | ??# #??## ######+#?????????????? | | ?# #??# #???? ????????????? | | ?# #??# #???# ###???????????? | | ### #??# T #???# #?????????????? | | ??# #??# #???# #?????????????? | | ??###########??# #???#o#?????????????? | | ???????????????## ##???# #?????????????? | | ????????????????# #????# #?????????????? | | ????????????????# #????# #?????????????? | | ????????????????# #????# #?????####????? | | ?????############ ##?### ###?? #????? | | ????""" """ # #?# #? #????? | | ?# """"""""" # ### # """ #????? | | ?# """"" " ! + g!T + """ #????? | | ?# # ###[% # """ #????? | | ?# [# ! #?# =l #?? #????? | | ?# ] #######?## ##????###????? | | ?### ###########????????#@ #????????????? | | ??????????????????????? /gss/ """ ???????? | | ????????????????????? # # """ ?????? | | ??????????????????? # # """ ?????? | | ?????????????????""""""?#s #? ??????? | | ????????????????""""""??# g#?? ??????? | | ????????????????"""""???# #???" ?????? | | ?????????????????""""???# #???? ?????? | | ????????????????????????# #????? ????? | | ????????????????????????# #?????####???? | | ????????????????????????# #????????????? | | ????????????????????????# #????????????? | | ????????????????????????# #????????????? | | ????????????????????????# #????????????? | | ????????????????????????? #????????????? | | ????????????????????????? #????????????? | | ????????????????????????? ?????????????? | | ????????????????????????? ?????????????? | | ?????????????????????????????????????????? | | ?????????????????????????????????????????? | | ?????????????????????????????????????????? | | ?????????????????????????????????????????? | | ?????????????????????????????????????????? | | ?????????????????????????????????????????? | | ?????????????????????????????????????????? | +----------------------------------------------------+ Best States ------------- Heat Dissipation 28 Energy Generation 14 Energy Capacity 280 Matter Stores 300 Matter Capacity 300 Sight Range 18 Terrain Scan Density 10 Evasion (%) 44 Item Schematics ----------------- Sml. Storage Unit | -10/Materials | Hacked Imp. Flight Unit | -9/Materials | Scanalyzed Robot Schematics ------------------ None Fabricated ------------ Nothing Alien Tech Used ----------------- None Achievements -------------- None Challenges ------------ None Game ------ Seed ThermicMomentumRay Manual? 0 Play Time 00:26:01 Cumulative 72.7 hours Start 2022.04.03 @ 10:50:56 End 2022.04.03 @ 11:13:43 Sessions 1 Manual Loads 0 Difficulty Rogue Special Mode None Game No. 80 Rogue 80 Adventurer 0 Explorer 0 Win Type - Total 0 Types 0/0/0/0/0/0/0/0/0 Lore% 32 Gallery% 48 Achievement% 35 Wizard Run 0 Options --------- ASCII 0 Keyboard 0 Movement Numpad Keybinds 0 Fullscreen 1 Font 16/Smallcaps Map View 76x50 Tactical HUD 1 Map Filters NONE Filters NONE Steam 1 RUN: 46854aa2-7592-47e8-8d25-6088c46962d7